[Event "*** Titled Tuesday Blitz"]
[Site "Chess.com"]
[Date "2020.04.07"]
[Round "2"]
[White "tamarozi99"]
[Black "Budisavljevic"]
[Result "0-1"]
[WhiteElo "1926"]
[BlackElo "2414"]
[TimeControl "180+1"]
[EndTime "13:21:38 PDT"]
[Termination "Budisavljevic won on time"]

1. e4 {[%clk 0:03:00.9]} 1... c5 {[%clk 0:02:56.9]} 2. Nf3 {[%clk 0:03:00.6]}
2... e6 {[%clk 0:02:56.8]} 3. d4 {[%clk 0:03:00.3]} 3... cxd4 {[%clk 0:02:57.7]}
4. Nxd4 {[%clk 0:03:01.2]} 4... a6 {[%clk 0:02:54.1]} 5. c4 {[%clk 0:03:00.7]}
5... Nf6 {[%clk 0:02:52.8]} 6. Nc3 {[%clk 0:03:00.5]} 6... Qc7 {[%clk
0:02:52.8]} 7. a3 {[%clk 0:03:00.3]} 7... b6 {[%clk 0:02:51.3]} 8. Be2 {[%clk
0:02:59]} 8... Bb7 {[%clk 0:02:49.8]} 9. f3 {[%clk 0:02:59.1]} 9... Be7 {[%clk
0:02:37.5]} 10. Be3 {[%clk 0:02:59.1]} 10... O-O {[%clk 0:02:36.1]} 11. O-O
{[%clk 0:02:59.1]} 11... d6 {[%clk 0:02:35.9]} 12. Qd2 {[%clk 0:02:58]} 12...
Nbd7 {[%clk 0:02:35.7]} 13. b4 {[%clk 0:02:56.4]} 13... Rac8 {[%clk 0:02:35.5]}
14. Rac1 {[%clk 0:02:54.7]} 14... Qb8 {[%clk 0:02:35.3]} 15. Nb3 {[%clk
0:02:50.5]} 15... Rfe8 {[%clk 0:02:34.6]} 16. Rfd1 {[%clk 0:02:39.8]} 16... Bd8
{[%clk 0:02:32.3]} 17. Bf4 {[%clk 0:02:39]} 17... Ne5 {[%clk 0:02:20.1]} 18.
Bxe5 {[%clk 0:02:38.5]} 18... dxe5 {[%clk 0:02:19.9]} 19. c5 {[%clk 0:02:34.1]}
19... bxc5 {[%clk 0:02:12.2]} 20. Nxc5 {[%clk 0:02:30.1]} 20... a5 {[%clk
0:02:04.1]} 21. Nb5 {[%clk 0:02:15.8]} 21... Be7 {[%clk 0:01:43.1]} 22. Nd6
{[%clk 0:02:04.9]} 22... Bxd6 {[%clk 0:01:36.5]} 23. Qxd6 {[%clk 0:02:05.8]}
23... axb4 {[%clk 0:01:30.6]} 24. Qxb8 {[%clk 0:01:42.3]} 24... Rxb8 {[%clk
0:01:31.5]} 25. axb4 {[%clk 0:01:43]} 25... Ba8 {[%clk 0:01:04.1]} 26. Rb1
{[%clk 0:01:40.7]} 26... Rec8 {[%clk 0:00:49.3]} 27. Na6 {[%clk 0:01:28.6]}
27... Rb6 {[%clk 0:00:46.3]} 28. b5 {[%clk 0:01:28.4]} 28... Kf8 {[%clk
0:00:43.7]} 29. Rbc1 {[%clk 0:01:20.7]} 29... Rxc1 {[%clk 0:00:23]} 30. Rxc1
{[%clk 0:01:21.6]} 30... Bb7 {[%clk 0:00:21.7]} 31. Rc7 {[%clk 0:01:06.1]} 31...
Ne8 {[%clk 0:00:21.5]} 32. Rd7 {[%clk 0:01:03.3]} 32... Bc8 {[%clk 0:00:21.4]}
33. Rd2 {[%clk 0:00:56.6]} 33... Ke7 {[%clk 0:00:20.7]} 34. Kf2 {[%clk
0:00:56.7]} 34... Nd6 {[%clk 0:00:20.8]} 35. Nc7 {[%clk 0:00:42.7]} 35... Bd7
{[%clk 0:00:20.2]} 36. Rb2 {[%clk 0:00:36.4]} 36... Rb7 {[%clk 0:00:20.2]} 37.
b6 {[%clk 0:00:34.7]} 37... Nc8 {[%clk 0:00:18.9]} 38. Na8 {[%clk 0:00:31.8]}
38... Bc6 {[%clk 0:00:18.9]} 39. Ba6 {[%clk 0:00:29.1]} 39... Rb8 {[%clk
0:00:19.2]} 40. b7 {[%clk 0:00:26.7]} 40... Nd6 {[%clk 0:00:18.6]} 41. Rc2
{[%clk 0:00:22.3]} 41... Bxb7 {[%clk 0:00:18.6]} 42. Rc7+ {[%clk 0:00:22]} 42...
Kd8 {[%clk 0:00:18.9]} 43. Bxb7 {[%clk 0:00:21.2]} 43... Rxb7 {[%clk 0:00:19.8]}
44. Rxb7 {[%clk 0:00:20.2]} 44... Nxb7 {[%clk 0:00:20.7]} 45. Nb6 {[%clk
0:00:21.1]} 45... Nd6 {[%clk 0:00:20.7]} 46. g3 {[%clk 0:00:21]} 46... Kc7
{[%clk 0:00:21.3]} 47. Na4 {[%clk 0:00:20.1]} 47... Kc6 {[%clk 0:00:21.8]} 48.
Nc3 {[%clk 0:00:20.2]} 48... f5 {[%clk 0:00:22.2]} 49. Ke3 {[%clk 0:00:19.7]}
49... Kc5 {[%clk 0:00:22.1]} 50. Kd3 {[%clk 0:00:18.8]} 50... f4 {[%clk
0:00:21.9]} 51. g4 {[%clk 0:00:18.2]} 51... Nf7 {[%clk 0:00:21.7]} 52. h4 {[%clk
0:00:17.7]} 52... Nh8 {[%clk 0:00:21.7]} 53. Na4+ {[%clk 0:00:16.7]} 53... Kb4
{[%clk 0:00:21.4]} 54. Nb6 {[%clk 0:00:16.3]} 54... Kc5 {[%clk 0:00:21.2]} 55.
Nd7+ {[%clk 0:00:15.9]} 55... Kd6 {[%clk 0:00:21]} 56. Nb6 {[%clk 0:00:16.3]}
56... Nf7 {[%clk 0:00:19.1]} 57. Nc4+ {[%clk 0:00:16.7]} 57... Kc5 {[%clk
0:00:19.3]} 58. g5 {[%clk 0:00:10.5]} 58... Kb4 {[%clk 0:00:18.7]} 59. Nb6
{[%clk 0:00:08.3]} 59... Kc5 {[%clk 0:00:18.3]} 60. Nd7+ {[%clk 0:00:08.4]}
60... Kd6 {[%clk 0:00:18.1]} 61. Nb6 {[%clk 0:00:09]} 61... h6 {[%clk 0:00:18]}
62. Nc4+ {[%clk 0:00:08.5]} 62... Ke7 {[%clk 0:00:17.2]} 63. g6 {[%clk
0:00:08.8]} 63... Nh8 {[%clk 0:00:17]} 64. Nxe5 {[%clk 0:00:09.7]} 64... Kf6
{[%clk 0:00:17]} 65. Kd4 {[%clk 0:00:07.5]} 65... Nxg6 {[%clk 0:00:16.9]} 66.
Nxg6 {[%clk 0:00:07.3]} 66... Kxg6 {[%clk 0:00:17.8]} 67. Ke5 {[%clk 0:00:08]}
67... Kh5 {[%clk 0:00:11.1]} 68. Kxe6 {[%clk 0:00:07.3]} 68... g5 {[%clk
0:00:09.8]} 69. hxg5 {[%clk 0:00:04.3]} 69... hxg5 {[%clk 0:00:08.3]} 70. Kf6
{[%clk 0:00:04.2]} 70... g4 {[%clk 0:00:08]} 71. fxg4+ {[%clk 0:00:03.3]} 71...
Kxg4 {[%clk 0:00:08.9]} 72. e5 {[%clk 0:00:03.8]} 72... f3 {[%clk 0:00:09.3]}
73. e6 {[%clk 0:00:04.7]} 73... f2 {[%clk 0:00:10.2]} 74. e7 {[%clk 0:00:04.6]}
74... f1=Q+ {[%clk 0:00:11.1]} 75. Kg7 {[%clk 0:00:04.3]} 75... Qa1+ {[%clk
0:00:10.9]} 76. Kf8 {[%clk 0:00:04.6]} 76... Qf6+ {[%clk 0:00:10.5]} 77. Ke8
{[%clk 0:00:03.9]} 77... Kf5 {[%clk 0:00:10.7]} 78. Kd7 {[%clk 0:00:04.2]} 78...
Qe6+ {[%clk 0:00:10.4]} 79. Kd8 {[%clk 0:00:04.3]} 79... Qd6+ {[%clk 0:00:10.6]}
80. Ke8 {[%clk 0:00:03.5]} 80... Kf6 {[%clk 0:00:10.4]} 0-1

[Event "*** Titled Tuesday Blitz"]
[Site "Chess.com"]
[Date "2020.04.07"]
[Round "2"]
[White "MarcoRiehle"]
[Black "2L8IWUN"]
[Result "1-0"]
[WhiteElo "2695"]
[BlackElo "2358"]
[TimeControl "180+1"]
[EndTime "13:21:43 PDT"]
[Termination "MarcoRiehle won by resignation"]

1. e4 {[%clk 0:03:00.9]} 1... c5 {[%clk 0:02:59.5]} 2. Nf3 {[%clk 0:02:57.8]}
2... d6 {[%clk 0:02:59.2]} 3. d4 {[%clk 0:02:56.9]} 3... cxd4 {[%clk 0:03:00.1]}
4. Nxd4 {[%clk 0:02:57.8]} 4... Nf6 {[%clk 0:03:00.7]} 5. f3 {[%clk 0:02:57]}
5... e5 {[%clk 0:02:59.8]} 6. Nb3 {[%clk 0:02:55.3]} 6... d5 {[%clk 0:02:56.7]}
7. Bg5 {[%clk 0:02:54]} 7... Be6 {[%clk 0:02:35.4]} 8. Bxf6 {[%clk 0:02:53.3]}
8... gxf6 {[%clk 0:02:33.1]} 9. exd5 {[%clk 0:02:53.5]} 9... Qxd5 {[%clk
0:02:34]} 10. Qxd5 {[%clk 0:02:51.9]} 10... Bxd5 {[%clk 0:02:34.9]} 11. Nc3
{[%clk 0:02:52.3]} 11... Bc6 {[%clk 0:02:32]} 12. O-O-O {[%clk 0:02:51.3]} 12...
Nd7 {[%clk 0:02:31.5]} 13. Na5 {[%clk 0:02:48.6]} 13... Bb4 {[%clk 0:02:26.7]}
14. Nxc6 {[%clk 0:02:46.8]} 14... bxc6 {[%clk 0:02:27.6]} 15. Ne4 {[%clk
0:02:41.7]} 15... Be7 {[%clk 0:02:26]} 16. Bc4 {[%clk 0:02:41.2]} 16... Nb6
{[%clk 0:02:21.7]} 17. Bb3 {[%clk 0:02:40.4]} 17... a5 {[%clk 0:02:18.6]} 18. a4
{[%clk 0:02:38]} 18... O-O {[%clk 0:02:14]} 19. Ng3 {[%clk 0:02:29.2]} 19...
Rfd8 {[%clk 0:02:05.7]} 20. Nf5 {[%clk 0:02:22.7]} 20... Bf8 {[%clk 0:02:06]}
21. c3 {[%clk 0:02:21.4]} 21... c5 {[%clk 0:02:01.3]} 22. Rxd8 {[%clk 0:02:18]}
22... Rxd8 {[%clk 0:02:00]} 23. Rd1 {[%clk 0:02:18.2]} 23... Rxd1+ {[%clk
0:01:56.4]} 24. Kxd1 {[%clk 0:02:18]} 24... c4 {[%clk 0:01:53.9]} 25. Bc2 {[%clk
0:02:17.7]} 25... Bc5 {[%clk 0:01:48.5]} 26. h4 {[%clk 0:02:11.6]} 26... Kf8
{[%clk 0:01:48.4]} 27. h5 {[%clk 0:02:10]} 27... Ke8 {[%clk 0:01:46.5]} 28. g4
{[%clk 0:02:06.4]} 28... Kd7 {[%clk 0:01:43.9]} 29. Ng3 {[%clk 0:02:05.1]} 29...
h6 {[%clk 0:01:39.3]} 30. Nf5 {[%clk 0:02:04.4]} 30... Bf8 {[%clk 0:01:38.8]}
31. Ke2 {[%clk 0:01:57.6]} 31... Nd5 {[%clk 0:01:33.2]} 32. Be4 {[%clk 0:01:54]}
32... Nb6 {[%clk 0:01:27.4]} 33. Bc2 {[%clk 0:01:52.6]} 33... Nd5 {[%clk
0:01:25.9]} 34. Ne3 {[%clk 0:01:46.6]} 34... Nxe3 {[%clk 0:01:23.7]} 35. Kxe3
{[%clk 0:01:47.5]} 35... Bc5+ {[%clk 0:01:20.6]} 36. Ke4 {[%clk 0:01:47.2]}
36... Kd6 {[%clk 0:01:18.7]} 37. Kf5 {[%clk 0:01:41.4]} 37... Ke7 {[%clk
0:01:17.9]} 38. b3 {[%clk 0:01:41.2]} 38... cxb3 {[%clk 0:01:14.2]} 39. Bxb3
{[%clk 0:01:42.1]} 39... Be3 {[%clk 0:01:14.8]} 40. Ke4 {[%clk 0:01:27.7]} 40...
Bf2 {[%clk 0:01:11.8]} 41. Kd5 {[%clk 0:01:26.4]} 41... Kd7 {[%clk 0:01:08.7]}
42. c4 {[%clk 0:01:26.2]} 42... Be3 {[%clk 0:01:03.4]} 43. c5 {[%clk 0:01:24]}
43... Kc7 {[%clk 0:00:54.2]} 44. Bc2 {[%clk 0:01:22.8]} 44... Kd7 {[%clk
0:00:50.9]} 45. Bf5+ {[%clk 0:01:14.6]} 45... Kc7 {[%clk 0:00:49.5]} 46. Bg6
{[%clk 0:01:07.3]} 46... Bd4 {[%clk 0:00:43.7]} 47. Bxf7 {[%clk 0:01:06]} 47...
Bc3 {[%clk 0:00:41.8]} 48. Be8 {[%clk 0:01:05.6]} 48... Bd2 {[%clk 0:00:38.2]}
49. Bb5 {[%clk 0:01:03.1]} 49... Bc1 {[%clk 0:00:34.2]} 50. Bd3 {[%clk 0:00:50]}
50... Bd2 {[%clk 0:00:32.8]} 51. Be4 {[%clk 0:00:50.3]} 51... Be3 {[%clk
0:00:26.7]} 52. Kc4 {[%clk 0:00:47.9]} 52... Bd2 {[%clk 0:00:22.9]} 53. Kb5
{[%clk 0:00:43]} 53... Be1 {[%clk 0:00:22.6]} 54. Bd5 {[%clk 0:00:40.3]} 54...
Bc3 {[%clk 0:00:20.6]} 55. Kc4 {[%clk 0:00:40.1]} 55... Bd2 {[%clk 0:00:20.5]}
56. Kd3 {[%clk 0:00:38.7]} 56... Bf4 {[%clk 0:00:17.5]} 57. Ke4 {[%clk
0:00:38.3]} 57... Bd2 {[%clk 0:00:17.7]} 58. Kf5 {[%clk 0:00:36.9]} 58... Bg5
{[%clk 0:00:17.9]} 59. Ke6 {[%clk 0:00:36.3]} 59... Bh4 {[%clk 0:00:17.4]} 60.
Be4 {[%clk 0:00:34.4]} 60... Bg5 {[%clk 0:00:17.8]} 61. Kf7 {[%clk 0:00:30.4]}
61... Bh4 {[%clk 0:00:15.5]} 62. Kg6 {[%clk 0:00:30.2]} 62... Bg5 {[%clk
0:00:15.7]} 63. Kg7 {[%clk 0:00:28.9]} 63... Kd7 {[%clk 0:00:15.7]} 64. Kf7
{[%clk 0:00:29.1]} 64... Kc7 {[%clk 0:00:16]} 65. Ke6 {[%clk 0:00:28.4]} 65...
Bh4 {[%clk 0:00:16.2]} 66. Kd5 {[%clk 0:00:26.6]} 66... Bg5 {[%clk 0:00:16.7]}
67. Bg6 {[%clk 0:00:24.3]} 67... Bd2 {[%clk 0:00:15.9]} 68. Be8 {[%clk 0:00:24]}
68... Bg5 {[%clk 0:00:16]} 69. Kc4 {[%clk 0:00:23]} 69... Bd2 {[%clk 0:00:16]}
70. c6 {[%clk 0:00:17.2]} 70... Be3 {[%clk 0:00:12.6]} 71. Kd5 {[%clk
0:00:16.8]} 71... Bd2 {[%clk 0:00:12.1]} 72. Bd7 {[%clk 0:00:16.3]} 72... Bf4
{[%clk 0:00:11.6]} 73. Ke6 {[%clk 0:00:16.1]} 73... Bg5 {[%clk 0:00:11.5]} 74.
Kf5 {[%clk 0:00:15.5]} 74... Bh4 {[%clk 0:00:09.8]} 75. Ke4 {[%clk 0:00:15.2]}
75... Bg5 {[%clk 0:00:09.5]} 76. Kd5 {[%clk 0:00:15.6]} 76... Bf4 {[%clk
0:00:09.3]} 77. Bf5 {[%clk 0:00:15.8]} 77... Bg5 {[%clk 0:00:09.6]} 78. Be4
{[%clk 0:00:16.2]} 78... Bf4 {[%clk 0:00:09.8]} 79. Ke6 {[%clk 0:00:16.2]} 79...
Bg5 {[%clk 0:00:10.1]} 80. Kf7 {[%clk 0:00:16.3]} 80... Bh4 {[%clk 0:00:10.5]}
81. Kg7 {[%clk 0:00:14.9]} 81... Bg5 {[%clk 0:00:11.1]} 82. Kg6 {[%clk
0:00:15.1]} 82... Kd6 {[%clk 0:00:11.6]} 83. Kf5 {[%clk 0:00:15]} 83... Kc7
{[%clk 0:00:12]} 84. Ke6 {[%clk 0:00:15.3]} 84... Bh4 {[%clk 0:00:12.1]} 85. Kd5
{[%clk 0:00:15.6]} 85... Bg5 {[%clk 0:00:12.7]} 86. Kc5 {[%clk 0:00:15.7]} 86...
Bd2 {[%clk 0:00:13.1]} 87. Kc4 {[%clk 0:00:15.9]} 87... Be3 {[%clk 0:00:12.5]}
88. Kc3 {[%clk 0:00:14.6]} 88... Bf4 {[%clk 0:00:12.9]} 89. Kd3 {[%clk
0:00:14.1]} 89... Bg5 {[%clk 0:00:13.4]} 90. Kc4 {[%clk 0:00:14.2]} 90... Bd2
{[%clk 0:00:14]} 91. Kd5 {[%clk 0:00:12.5]} 91... Bf4 {[%clk 0:00:14.2]} 92. Ke6
{[%clk 0:00:12.3]} 92... Bg5 {[%clk 0:00:14.9]} 93. Kf5 {[%clk 0:00:12.6]} 93...
Bh4 {[%clk 0:00:14.8]} 94. f4 {[%clk 0:00:12.8]} 94... exf4 {[%clk 0:00:14.4]}
95. Bf3 {[%clk 0:00:11.3]} 95... Bg5 {[%clk 0:00:15.3]} 96. Kg6 {[%clk
0:00:11.4]} 96... Bh4 {[%clk 0:00:15.2]} 97. Kxh6 {[%clk 0:00:11.1]} 97... Kd6
{[%clk 0:00:13]} 98. Kg7 {[%clk 0:00:10.4]} 98... Bg5 {[%clk 0:00:13.6]} 99. h6
{[%clk 0:00:10.4]} 1-0

[Event "*** Titled Tuesday Blitz"]
[Site "Chess.com"]
[Date "2020.04.07"]
[Round "2"]
[White "babadroga92"]
[Black "arctic_t00"]
[Result "1/2-1/2"]
[WhiteElo "2690"]
[BlackElo "2385"]
[TimeControl "180+1"]
[EndTime "13:21:48 PDT"]
[Termination "Game drawn by stalemate"]

1. e4 {[%clk 0:03:00.9]} 1... e6 {[%clk 0:02:59.7]} 2. d3 {[%clk 0:02:47.3]}
2... c5 {[%clk 0:02:59]} 3. Nd2 {[%clk 0:02:43.3]} 3... Nc6 {[%clk 0:02:58.7]}
4. g3 {[%clk 0:02:43.6]} 4... Nf6 {[%clk 0:02:57.3]} 5. Bg2 {[%clk 0:02:44.1]}
5... d6 {[%clk 0:02:57.2]} 6. c3 {[%clk 0:02:43.5]} 6... Be7 {[%clk 0:02:57.5]}
7. Qe2 {[%clk 0:02:43.8]} 7... O-O {[%clk 0:02:57.6]} 8. Ngf3 {[%clk 0:02:44]}
8... Rb8 {[%clk 0:02:54.2]} 9. O-O {[%clk 0:02:40.7]} 9... b5 {[%clk 0:02:54.1]}
10. Re1 {[%clk 0:02:39.4]} 10... e5 {[%clk 0:02:52.2]} 11. Nf1 {[%clk
0:02:34.8]} 11... Re8 {[%clk 0:02:37.5]} 12. Bg5 {[%clk 0:02:17.5]} 12... h6
{[%clk 0:02:34.9]} 13. Bxf6 {[%clk 0:02:16.6]} 13... Bxf6 {[%clk 0:02:35.8]} 14.
Ne3 {[%clk 0:02:16]} 14... Be6 {[%clk 0:02:28.2]} 15. Nd5 {[%clk 0:01:47.7]}
15... Bxd5 {[%clk 0:02:16]} 16. exd5 {[%clk 0:01:48.6]} 16... Ne7 {[%clk
0:02:15.9]} 17. Nd2 {[%clk 0:01:40.5]} 17... g6 {[%clk 0:02:10.5]} 18. a4 {[%clk
0:01:30.1]} 18... a6 {[%clk 0:02:05.2]} 19. axb5 {[%clk 0:01:30]} 19... axb5
{[%clk 0:02:06.1]} 20. Ra6 {[%clk 0:01:30.1]} 20... Nc8 {[%clk 0:02:00.4]} 21.
Rea1 {[%clk 0:01:24.3]} 21... Nb6 {[%clk 0:01:57.9]} 22. R1a5 {[%clk 0:01:07.8]}
22... Nc8 {[%clk 0:01:27.4]} 23. Bh3 {[%clk 0:00:53.4]} 23... Be7 {[%clk
0:00:50]} 24. Bxc8 {[%clk 0:00:21.3]} 24... Qxc8 {[%clk 0:00:50.9]} 25. Kg2
{[%clk 0:00:07.9]} 25... Bf8 {[%clk 0:00:50.4]} 26. Ne4 {[%clk 0:00:06.4]} 26...
Qd8 {[%clk 0:00:48.5]} 27. Qf3 {[%clk 0:00:02.2]} 27... f5 {[%clk 0:00:46.8]}
28. Nd2 {[%clk 0:00:02]} 28... Bg7 {[%clk 0:00:41.5]} 29. h4 {[%clk 0:00:02.3]}
29... h5 {[%clk 0:00:40.8]} 30. Qe2 {[%clk 0:00:02.4]} 30... Qe7 {[%clk
0:00:35]} 31. Nb3 {[%clk 0:00:02.5]} 31... Qf7 {[%clk 0:00:31.1]} 32. Ra7 {[%clk
0:00:03.1]} 32... Qxd5+ {[%clk 0:00:30.3]} 33. Qf3 {[%clk 0:00:03.1]} 33... Qxb3
{[%clk 0:00:28.7]} 34. Qc6 {[%clk 0:00:03.7]} 34... Qe6 {[%clk 0:00:25.7]} 35.
R5a6 {[%clk 0:00:03.6]} 35... Rec8 {[%clk 0:00:18.9]} 36. Rc7 {[%clk 0:00:03.8]}
36... Rxc7 {[%clk 0:00:18.3]} 37. Qxc7 {[%clk 0:00:04.7]} 37... Qd5+ {[%clk
0:00:15.6]} 38. f3 {[%clk 0:00:04.8]} 38... Rf8 {[%clk 0:00:15.2]} 39. Rxd6
{[%clk 0:00:05.1]} 39... Qf7 {[%clk 0:00:14.4]} 40. Qxc5 {[%clk 0:00:05.4]}
40... e4 {[%clk 0:00:13.1]} 41. dxe4 {[%clk 0:00:04.7]} 41... fxe4 {[%clk
0:00:13.9]} 42. f4 {[%clk 0:00:05.6]} 42... Qe7 {[%clk 0:00:13]} 43. Rd5 {[%clk
0:00:05]} 43... Qxc5 {[%clk 0:00:11.4]} 44. Rxc5 {[%clk 0:00:05.9]} 44... Re8
{[%clk 0:00:11.7]} 45. Kf2 {[%clk 0:00:06.4]} 45... Rd8 {[%clk 0:00:11.4]} 46.
Ke2 {[%clk 0:00:06.4]} 46... Rb8 {[%clk 0:00:11]} 47. Ke3 {[%clk 0:00:06.8]}
47... Bf8 {[%clk 0:00:10.2]} 48. Rc6 {[%clk 0:00:06.8]} 48... Kf7 {[%clk
0:00:09.6]} 49. Kxe4 {[%clk 0:00:07.3]} 49... Be7 {[%clk 0:00:09.5]} 50. f5
{[%clk 0:00:07.7]} 50... gxf5+ {[%clk 0:00:09.1]} 51. Kxf5 {[%clk 0:00:08.6]}
51... Rg8 {[%clk 0:00:09.5]} 52. Kf4 {[%clk 0:00:07.9]} 52... Rd8 {[%clk
0:00:08.1]} 53. Rb6 {[%clk 0:00:06.9]} 53... Rd5 {[%clk 0:00:08.2]} 54. Ke4
{[%clk 0:00:06.6]} 54... Rc5 {[%clk 0:00:06.1]} 55. Kd4 {[%clk 0:00:05.2]} 55...
Rc4+ {[%clk 0:00:06.4]} 56. Ke3 {[%clk 0:00:04.6]} 56... Rg4 {[%clk 0:00:07.3]}
57. Kf3 {[%clk 0:00:04.9]} 57... Bf6 {[%clk 0:00:06.2]} 58. Rxb5 {[%clk
0:00:04.8]} 58... Kg6 {[%clk 0:00:06.6]} 59. Rb6 {[%clk 0:00:04.9]} 59... Kf7
{[%clk 0:00:05.9]} 60. Rb5 {[%clk 0:00:04.2]} 60... Kg6 {[%clk 0:00:05.9]} 61.
Rd5 {[%clk 0:00:04.4]} 61... Kf7 {[%clk 0:00:05.3]} 62. Rxh5 {[%clk 0:00:04.4]}
62... Ra4 {[%clk 0:00:04.5]} 63. Rb5 {[%clk 0:00:04.8]} 63... Ra2 {[%clk
0:00:04.7]} 64. g4 {[%clk 0:00:04.8]} 64... Bxh4 {[%clk 0:00:03.9]} 65. g5
{[%clk 0:00:05.3]} 65... Kg6 {[%clk 0:00:04.1]} 66. Kg4 {[%clk 0:00:05.4]} 66...
Be1 {[%clk 0:00:04]} 67. Rb6+ {[%clk 0:00:05.7]} 67... Kg7 {[%clk 0:00:04.1]}
68. Kf5 {[%clk 0:00:05.3]} 68... Ra5+ {[%clk 0:00:03.6]} 69. Kg4 {[%clk
0:00:05.9]} 69... Bd2 {[%clk 0:00:03.9]} 70. g6 {[%clk 0:00:06.4]} 70... Ra4+
{[%clk 0:00:03.6]} 71. Kf3 {[%clk 0:00:06.8]} 71... Ra2 {[%clk 0:00:03.5]} 72.
Ke2 {[%clk 0:00:07]} 72... Bh6 {[%clk 0:00:03.9]} 73. Kd3 {[%clk 0:00:07.5]}
73... Ra1 {[%clk 0:00:03.9]} 74. b4 {[%clk 0:00:07.9]} 74... Rd1+ {[%clk
0:00:03.6]} 75. Kc4 {[%clk 0:00:07.9]} 75... Rg1 {[%clk 0:00:04.5]} 76. Kb5
{[%clk 0:00:07.8]} 76... Rxg6 {[%clk 0:00:04.8]} 77. Rxg6+ {[%clk 0:00:08.7]}
77... Kxg6 {[%clk 0:00:05.7]} 78. c4 {[%clk 0:00:09.6]} 78... Kf7 {[%clk
0:00:06.2]} 79. c5 {[%clk 0:00:10.2]} 79... Ke8 {[%clk 0:00:06.7]} 80. Kc6
{[%clk 0:00:10.8]} 80... Kd8 {[%clk 0:00:07]} 81. Kb7 {[%clk 0:00:11.3]} 81...
Bf4 {[%clk 0:00:07.1]} 82. c6 {[%clk 0:00:11.5]} 82... Bd6 {[%clk 0:00:06.8]}
83. b5 {[%clk 0:00:12.1]} 83... Bc7 {[%clk 0:00:07.3]} 84. Ka6 {[%clk
0:00:10.5]} 84... Kc8 {[%clk 0:00:07.3]} 85. Ka7 {[%clk 0:00:10.5]} 85... Ba5
{[%clk 0:00:06.8]} 86. b6 {[%clk 0:00:09.2]} 86... Bxb6+ {[%clk 0:00:07]} 87.
Kxb6 {[%clk 0:00:10.1]} 87... Kb8 {[%clk 0:00:07.4]} 88. c7+ {[%clk 0:00:10.4]}
88... Kc8 {[%clk 0:00:07.7]} 89. Kc6 {[%clk 0:00:10.6]} 1/2-1/2